{"text_format":"3","workbook":"xlsx","n_sheets":3,"sheets":["COVER SHEET","2. TRANSACTION FEE OFFSITE ","Price Declaration "],"not_rendered":{"images":2,"defined_names":26},"read":"whole","date_system":"1900"}

{"sheet":"COVER SHEET","index":0,"n_rows":45,"n_cols":10,"rows_kept":45,"merged":[[1,9,1,11],[13,0,13,12],[16,4,16,11],[18,4,18,11],[20,4,20,11],[23,0,23,12],[25,0,25,12],[26,0,26,12],[27,0,27,12],[28,0,28,12],[29,0,29,12],[30,0,30,12],[31,0,31,12],[32,0,32,12],[33,0,33,12],[34,0,34,12],[35,0,35,12],[36,0,36,12],[37,0,37,12],[38,0,38,12],[39,0,39,12],[40,0,40,12],[41,0,41,12],[42,0,42,12],[43,0,43,12],[44,0,44,12],[45,0,45,12],[46,0,46,12]]}
[]
[{"$nulls":9},"ANNEXURE A3"]
{"$rows_empty":11}
["PRICING SUBMISSION"]
[]
[]
["RFP NO:",{"$nulls":3},"HSRC/04/2021/22"]
[]
["RFP NAME:",{"$nulls":3},"THE PROVISION OF TRAVEL MANAGEMENT SERVICES FOR A PERIOD OF 36 MONTHS"]
[]
["BIDDER NAME",{"$nulls":3},"<NAME OF BIDDER TO BE FILLED IN HERE>"]
[]
[]
["PRICE INSTRUCTIONS"]
[]
["1.  STRUCTURE OF THE TENDER"]
["This spreadsheet for RFP HSRC/03/2024/25 contains the financial response templates for the bid. The bid pricing submission instructions in this document must be read in conjunction with instructions or notes embedded in the various tabs of spreadsheet (Pricing Schedule)."]
[]
["2.  GENERAL INSTRUCTIONS FOR COMPLETING THE PRICING SCHEDULE TEMPLATES"]
["2.1  Tender submission format"]
["2.1.1 Bidders must submit  a paper copy and an electronic copy of the Pricing Schedule. In the event of a discrepancy, the\n         paper copy will prevail."]
["2.1.2 Bidders must sign all paper copies of their Pricing Schedule."]
["2.1.3 Bidders must complete and submit the templates attached ,which is\n         transactional fee model offsite"]
["2.1.4 Bidders must reference RFP/BID main document section 15.2 for current travel volumes."]
["2.2  Input spreadsheets"]
["2.2.1 The Pricing Schedule templates are contained within the one (1) Excel Workbook"]
["2.2.2 Bidders must not  make any changes to the spreadsheets or change the formatting of the Pricing Schedule."]
["2.2.3 Cells are formatted to automatically indicate South African Rands, ordinary text fields and percentages (%) where \n         applicable."]
["2.2.4 Input cells FOR BIDDERS are highlighted in  GREEN. The Bidder must complete all the relevant input cells for the bid. \n        No other cells must be changed in any way whatsoever."]
["2.2.4 Input cells FOR THE TENDERING INSTITUTION are highlighted in  ORANGE. The Tendering Institution must complete all  \n        the relevant input cells for the bid. No other cells must be changed in any way whatsoever."]
[]
[]
["2.3  Currency and VAT"]
["2.3.1 All Bidders’ pricing must be quoted in South African Rands (ZAR)."]
["2.3.3 The Pricing Schedule template is designed such that VAT (15% VAT) will be calculated on Bidders’ input pricing; therefore\n         Bidders must complete the templates with unit prices excluding VAT."]

{"sheet":"2. TRANSACTION FEE OFFSITE ","index":1,"n_rows":53,"n_cols":9,"rows_kept":53,"merged":[[0,2,2,7],[3,2,3,7],[6,2,6,7],[7,2,7,7],[8,2,8,7],[10,3,10,4],[11,0,11,2],[11,3,11,5],[11,6,11,8],[47,0,47,1],[48,0,48,3],[48,4,48,8],[50,0,50,1],[50,3,50,4],[51,3,51,8],[52,3,52,8]]}
[null,null,"TEMPLATE 2: TRANSACTION FEE MODEL"]
[]
[]
[null,null,"OFF-SITE SERVICES"]
[]
[]
["RFP NO:",null,"HSRC/03/2024/25"]
["RFP NAME:",null,{"$f":"'COVER SHEET'!$E19","v":"THE PROVISION OF TRAVEL MANAGEMENT SERVICES FOR A PERIOD OF 36 MONTHS"}]
["BIDDER NAME",null,{"$f":"'COVER SHEET'!$E21","v":"<NAME OF BIDDER TO BE FILLED IN HERE>"}]
[]
["1.1  TRANSACTION FEES"]
[{"$nulls":3},"TRADITIONAL BOOKINGS",null,null,"ONLINE BOOKINGS"]
["ITEM","Transaction Type","Estimated Volume","Unit Price\n(excl VAT)","Unit Price\n(incl VAT)","TOTAL Price\n(incl VAT)","Unit Price\n(excl VAT)","Unit Price\n(incl VAT)","TOTAL Price\n(incl VAT)"]
[1,"Air Travel – International",1100,null,{"$f":"D14*1.15","v":0},{"$f":"E14*C14","v":0},null,{"$f":"G14*1.15","v":0},{"$f":"H14*C14","v":0}]
[2,"Air Travel – Regional",400,null,{"$f":"D15*1.15","v":0},{"$f":"E15*C15","v":0},null,{"$f":"G15*1.15","v":0},{"$f":"H15*C15","v":0}]
[3,"Air Travel – Domestic ",{"$f":"4446-1500","v":2946},null,0,0,null,0,0]
[4,"Air Travel – International (Re-issue)",100,null,0,0,null,0,0]
[5,"Air Travel – Regional (Re-issue)",150,null,0,0,null,0,0]
[6,"Air Travel – Domestic (Re-issue)",300,null,0,0,null,0,0]
[7,"Refunds – Air Domestic",100,null,0,0,null,0,0]
[8,"Refunds – Air Regional",40,null,0,0,null,0,0]
[9,"Refunds – Air International",50,null,0,0,null,0,0]
[10,"Car Rental – Domestic",4000,null,0,0,null,0,0]
[11,"Car Rental – Regional ",100,null,0,0,null,0,0]
[12,"Car Rental – International",20,null,0,0,null,0,0]
[13,"Transfers/Shuttle – Domestic",800,null,0,0,null,0,0]
[14,"Transfers/Shuttle – Regional",200,null,0,0,null,0,0]
[15,"Transfers/Shuttle – International",800,null,0,0,null,0,0]
[16,"e-hailing service-Domestic",2500,null,{"$f":"D29*1.15","v":0},{"$f":"E29*C29","v":0},null,{"$f":"G29*1.15","v":0},{"$f":"H29*C29","v":0}]
[17,"e-hailing service-Regional ",500,null,0,0,null,0,0]
[18,"e-hailing service-International",400,null,0,0,null,0,0]
[19,"Accommodation – Domestic",2430,null,0,0,null,0,0]
[20,"Accommodation – Regional",400,null,0,0,null,0,0]
[21,"Accommodation – International",800,null,0,0,null,0,0]
[22,"Bus/Coach Bookings",10,null,0,0,null,0,0]
[23,"Train bookings – International",10,null,0,0,null,0,0]
[24,"Visa Assistance \n(Provision of documents and advice)",1000,null,0,0,null,0,0]
[25,"SMS Notifications",4000,null,0,0,null,0,0]
[26,"Parking bookings",100,null,0,0,null,0,0]
[27,"Cancellations",100,null,0,0,null,0,0]
[28,"Changes to bookings",200,null,0,0,null,0,0]
[29,"After Hours Services",5000,null,0,0,null,0,0]
[30,"Additional Ad-hoc Reports (per report)",12,null,0,0,null,0,0]
[31,"Customised Reports (per report)",12,null,0,0,null,0,0]
[32,"Travel Lodge card Reconciliation",36,null,0,0,null,0,0]
[33,"Debtors Account Reconciliation",36,null,0,0,null,0,0]
[null,"Total",{"$f":"SUM(C14:C46)","v":28652},null,null,{"$f":"SUM(F14:F46)","v":0},null,null,{"$f":"SUM(I14:I46)","v":0}]
["Percentage Split between Online Booking  and Traditional Booking",null,null,"Percentage Traditional",{"v":0.2,"d":"20.00%"},{"$f":"F47*E48","v":0},"Percentage Online",{"v":0.8,"d":"80.00%"},{"$f":"I47*H48","v":0}]
["PRICE THAT WILL BE USED FOR EVALUATION PURPOSES",{"$nulls":3},{"$f":"F48+I48","v":0}]
[]
["1.2  CONFERENCE TRANSACTION FEE"]
["Item","Description","Percentage Fee","Comment"]
[1,"Conference Transaction Fee (as a % of the Total turnover of the event)"]

{"sheet":"Price Declaration ","index":2,"n_rows":46,"n_cols":5,"rows_kept":46,"merged":[[7,0,7,1],[7,2,7,8],[8,0,8,1],[8,2,8,8],[9,0,9,1],[9,2,9,8],[12,0,12,8],[15,0,15,8],[16,0,16,8],[17,0,17,8],[18,0,18,1],[18,2,18,3],[18,4,18,6],[18,7,18,8],[19,0,19,8],[20,0,20,8],[23,0,23,8],[24,0,24,1],[24,2,24,3],[24,4,24,6],[24,7,24,8],[25,0,25,8],[26,0,26,8],[29,0,29,8],[30,0,30,8],[31,0,31,8],[32,0,32,8],[33,0,33,8],[34,0,34,8],[35,0,35,8],[36,0,36,2],[36,4,36,8],[37,0,37,8],[38,0,38,8],[39,0,39,8],[40,0,40,8],[41,0,41,8],[42,0,42,8],[43,0,43,8],[44,0,44,8],[45,0,45,8],[46,0,46,8]]}
{"$rows_empty":7}
["RFP NO:",null,"HSRC/03/2024/25"]
["RFP NAME:",null,{"$f":"'COVER SHEET'!$E$19","v":"THE PROVISION OF TRAVEL MANAGEMENT SERVICES FOR A PERIOD OF 36 MONTHS"}]
["BIDDER NAME",null,{"$f":"'COVER SHEET'!$E$21","v":"<NAME OF BIDDER TO BE FILLED IN HERE>"}]
[]
[]
["Price Declaration"]
["Dear Sir/Madam,"]
[]
["Having read through and examined the Request For Proposal (RFP) Document, the General Conditions, The Requirement and all other Annexures to the RFP Document, we offer to provide OFF-SITE travel management service to the HSRC at the following total amounts (including VAT)"]
[]
["1.1  TRANSACTION FEES (off site)"]
[{"$f":"'2. TRANSACTION FEE OFFSITE '!E49","v":0},null,"(incl. VAT)"]
["In words:"]
[]
[]
[]
["1.2  CONFERENCE TRANSACTION FEE"]
[{"$f":"'2. TRANSACTION FEE OFFSITE '!C53","v":{"v":0,"d":"0%"}},null,"(incl. VAT)"]
["In words:"]
[]
[]
[]
[]
["We undertake to hold this offer open for acceptance for a period of 120 days from the date of submission of offers. We further undertake that upon final acceptance of our offer, we will commence with the provision of service when required to do so by the HSRC"]
[]
["We understand that HSRC are not bound to accept the lowest or any offer and that we must bear all costs which we have incurred in connection with preparing and submitting this bid."]
[]
["We hereby undertake for the period during which this bid remains open for acceptance not to divulge to any persons, other than the persons to which the bid is submitted, any information relating to the submission of this bid or the details therein except where such is necessary for the submission of this bid."]
[]
["Signature",{"$nulls":3},"Date"]
["Print name of signatory: ……………………………………………………………………………. "]
["Designation: ………………………………………………………………………………………….  "]
[]
["FOR AND ON BEHALF OF: COMPANY NAME"]
[]
["Tel No: ………………………………………."]
["Fax No: ………………………………………."]
["Cell No: ………………………………………."]
["Email:…………………………………………."]